fUST/lending_fUST_20241205
["ID","MTS","AMOUNT","RATE_DAILY","PERIOD"]
[344303124,1733333443485,-500.0,0.00024931,7]
[344303125,1733333443495,-500.0,0.00024931,7]
[344303126,1733333443505,-1116.42,0.00024931,7]
[344303127,1733333443515,-326.04814299,0.00024931,7]
[344303128,1733333443525,-500.0,0.00024931,7]
[344303129,1733333443535,-500.0,0.00024931,7]
[344303130,1733333443545,-500.0,0.00024931,7]
[344303132,1733333443555,-512.64843603,0.00024931,7]
[344303134,1733333443565,-500.0,0.00024931,7]
[344303136,1733333443574,-500.0,0.00024931,7]
[344303138,1733333443584,-500.0,0.00024931,7]
[344303139,1733333443595,-563.92,0.00024931,7]
[344303141,1733333443606,-500.0,0.00024931,7]
[344303142,1733333443616,-612.75837568,0.00024931,7]
[344303144,1733333443625,-522.96,0.00024931,7]
[344303146,1733333443636,-500.0,0.00024931,7]
[344303148,1733333443645,-500.0,0.00024931,7]
[344303150,1733333443655,-500.0,0.00024931,7]
[344303152,1733333443664,-515.01,0.00024931,7]
[344303154,1733333443675,-500.0,0.00024931,7]
[344303156,1733333443687,-452.30250139,0.00024931,7]
[344303158,1733333443696,-500.0,0.00024931,7]
[344303160,1733333443706,-504.71,0.00024931,7]
[344303161,1733333443715,-500.0,0.00024931,7]
[344303162,1733333443725,-7087.95,0.00024931,7]
[344303164,1733333443738,-500.0,0.00024931,7]
[344303166,1733333443748,-500.0,0.00024931,7]
[344303168,1733333443759,-500.0,0.00024931,7]
[344303170,1733333443769,-573.2377363,0.00024931,7]
[344303172,1733333443779,-2035.02,0.00024931,7]
[344303174,1733333443789,-3116.65,0.00024931,7]
[344303176,1733333443798,-500.0,0.00024931,7]
[344303178,1733333443808,-500.0,0.00024931,7]
[344303180,1733333443817,-500.0,0.00024931,7]
[344303182,1733333443827,-500.0,0.00024931,7]
[344303184,1733333443837,-500.0,0.00024931,7]
[344303186,1733333443847,-500.0,0.00024931,7]
[344303188,1733333443856,-500.0,0.00024931,7]
[344303190,1733333443866,-564.96,0.00024931,7]
[344303192,1733333443876,-500.0,0.00024931,7]
[344303194,1733333443885,-500.0,0.00024931,7]
[344303196,1733333443895,-500.0,0.00024931,7]
[344303197,1733333443904,-500.0,0.00024931,7]
[344303199,1733333443914,-1293.31,0.00024931,7]
[344303201,1733333443924,-500.0,0.00024931,7]
[344303203,1733333443933,-500.0,0.00024931,7]
[344303205,1733333443943,-500.0,0.00024931,7]
[344303207,1733333443952,-500.0,0.00024931,7]
[344303209,1733333443962,-1459.39,0.00024931,7]
[344303211,1733333443972,-657.86,0.00024931,7]
[344303213,1733333443982,-500.0,0.00024931,7]
[344303215,1733333443992,-599.05,0.00024931,7]
[344303217,1733333444002,-500.0,0.00024931,7]
[344303219,1733333444011,-689.6,0.00024931,7]
[344303221,1733333444021,-903.51,0.00024931,7]
[344303223,1733333444030,-500.0,0.00024931,7]
[344303224,1733333444040,-500.0,0.00024931,7]
[344303226,1733333444049,-500.0,0.00024931,7]
[344303228,1733333444059,-1056.39,0.00024931,7]
[344303230,1733333444068,-500.0,0.00024931,7]
[344303231,1733333444077,-557.51,0.00024931,7]
[344303233,1733333444087,-500.0,0.00024931,7]
[344303236,1733333444096,-500.0,0.00024931,7]
[344303238,1733333444106,-2094.84,0.00024931,7]
[344303240,1733333444116,-500.0,0.00024931,7]
[344303242,1733333444125,-679.03,0.00024931,7]
[344303244,1733333444135,-500.0,0.00024931,7]
[344303246,1733333444145,-500.0,0.00024931,7]
[344303248,1733333444154,-500.0,0.00024931,7]
[344303250,1733333444164,-500.0,0.00024931,7]
[344303252,1733333444174,-1824.02,0.00024931,7]
[344303254,1733333444183,-655.64,0.00024931,7]
[344303255,1733333444193,-500.0,0.00024931,7]
[344303257,1733333444202,-500.0,0.00024931,7]
[344303259,1733333444212,-500.0,0.00024931,7]
[344303261,1733333444223,-500.0,0.00024931,7]
[344303263,1733333444235,-500.0,0.00024931,7]
[344303265,1733333444245,-606.39,0.00024931,7]
[344303267,1733333444255,-500.0,0.00024931,7]
[344303268,1733333444264,-535.37,0.00024931,7]
[344303270,1733333444274,-500.0,0.00024931,7]
[344303272,1733333444284,-500.0,0.00024931,7]
[344303274,1733333444293,-703.44,0.00024931,7]
[344303275,1733333444303,-500.0,0.00024931,7]
[344303277,1733333444312,-571.15,0.00024931,7]
[344303279,1733333444322,-770.81,0.00024931,7]
[344303281,1733333444332,-771.52,0.00024931,7]
[344303282,1733333444343,-500.0,0.00024931,7]
[344303284,1733333444353,-500.0,0.00024931,7]
[344303286,1733333444363,-500.0,0.00024931,7]
[344303288,1733333444372,-500.0,0.00024931,7]
[344303289,1733333444382,-500.0,0.00024931,7]
[344303290,1733333444392,-271.82222782,0.00024931,7]
[344303291,1733333444401,-500.0,0.00024931,7]
[344303293,1733333444411,-500.0,0.00024931,7]
[344303295,1733333444421,-500.0,0.00024931,7]
[344303298,1733333444432,-500.0,0.00024931,7]
[344303300,1733333444442,-500.0,0.00024931,7]
[344303302,1733333444452,-729.72,0.00024931,7]
[344303304,1733333444461,-500.0,0.00024931,7]
[344303306,1733333444471,-500.0,0.00024931,7]
[344303309,1733333444482,-7776.5,0.00024931,7]
[344303311,1733333444495,-434.98342381,0.00024931,7]
[344303314,1733333444505,-506.18118143,0.00024973,2]
[344303316,1733333444515,-170.38471052,0.00024973,2]
[344303319,1733333444525,-500.0,0.00024973,2]
[344303322,1733333444534,-500.0,0.00024973,2]
[344303325,1733333444545,-501.44575135,0.00024973,2]
[344303329,1733333444555,-262.23162947,0.00024973,2]
[344303332,1733333444564,-500.0,0.00024973,2]
[344303335,1733333444575,-21494.98299453,0.00025,2]
[344303338,1733333444584,-43047.80238922,0.00025,7]
[344303340,1733333444594,-412509.56486792,0.00025,2]
[344303342,1733333444606,-166.05135403,0.00025,2]
[344303343,1733333444615,-57141.92416512,0.00025,2]
[344303345,1733333444625,-204.11264877,0.00025,2]
[344303347,1733333444636,-9174.4827813,0.00025,2]
[344303349,1733333444646,-110978.8737506,0.0002509,2]
[344303351,1733333444655,-500.0,0.00025205,7]
[344303353,1733333444665,-500.0,0.00025205,7]
[344303355,1733333444677,-500.0,0.00025205,7]
[344303357,1733333444686,-200.0,0.00025205,7]
[344303359,1733333444695,-500.0,0.00025205,7]
[344303361,1733333444705,-500.0,0.00025205,7]
[344303363,1733333444715,-721.83,0.00025205,7]
[344303365,1733333444724,-573.45,0.00025205,7]
[344303367,1733333444736,-522.96,0.00025205,7]
[344303368,1733333444746,-500.0,0.00025205,7]
[344303370,1733333444756,-500.0,0.00025205,7]
[344303372,1733333444766,-500.0,0.00025205,7]
[344303374,1733333444776,-500.0,0.00025205,7]
[344303376,1733333444785,-500.0,0.00025205,7]
[344303378,1733333444794,-500.0,0.00025205,7]
[344303380,1733333444804,-500.0,0.00025205,7]
[344303382,1733333444814,-500.0,0.00025205,7]
[344303384,1733333444824,-500.0,0.00025205,7]
[344303386,1733333444834,-500.0,0.00025205,7]
[344303388,1733333444843,-709.08,0.00025205,7]
[344303390,1733333444853,-926.59,0.00025205,7]
[344303392,1733333444863,-500.0,0.00025205,7]
[344303394,1733333444872,-500.0,0.00025205,7]
[344303395,1733333444881,-500.0,0.00025205,7]
[344303397,1733333444891,-500.0,0.00025205,7]
[344303399,1733333444900,-504.13,0.00025205,7]
[344303401,1733333444909,-500.0,0.00025205,7]
[344303403,1733333444919,-723.18,0.00025205,7]
[344303405,1733333444928,-500.0,0.00025205,7]
[344303407,1733333444938,-500.0,0.00025205,7]
[344303409,1733333444948,-500.0,0.00025205,7]
[344303410,1733333444958,-500.0,0.00025205,7]
[344303412,1733333444967,-500.0,0.00025205,7]
[344303414,1733333444977,-500.0,0.00025205,7]
[344303428,1733333445114,-500.0,0.00025205,7]
[344303430,1733333445125,-626.31,0.00025205,7]
[344303432,1733333445136,-500.0,0.00025205,7]
[344303434,1733333445146,-1467.58,0.00025205,7]
[344303436,1733333445156,-662.89,0.00025205,7]
[344303438,1733333445165,-500.0,0.00025205,7]
[344303440,1733333445175,-500.0,0.00025205,7]
[344303442,1733333445184,-500.0,0.00025205,7]
[344303444,1733333445193,-500.0,0.00025205,7]
[344303446,1733333445203,-500.0,0.00025205,7]
[344303448,1733333445212,-500.0,0.00025205,7]
[344303450,1733333445221,-677.12,0.00025205,7]
[344303452,1733333445231,-524.85,0.00025205,7]
[344303454,1733333445244,-212.45987373,0.00025205,7]
[344303456,1733333445254,-254.0,0.00025205,7]
[344303457,1733333445263,-500.0,0.00025205,7]
[344303459,1733333445273,-500.0,0.00025205,7]
[344303461,1733333445283,-500.0,0.00025205,7]
[344303463,1733333445292,-500.0,0.00025205,7]
[344303465,1733333445302,-306.54551385,0.00025205,7]
[344303467,1733333445311,-500.0,0.00025205,7]
[344303469,1733333445321,-629.48,0.00025205,7]
[344303471,1733333445330,-500.0,0.00025205,7]
[344303473,1733333445341,-500.0,0.00025205,7]
[344303475,1733333445351,-500.0,0.00025205,7]
[344303477,1733333445361,-500.0,0.00025205,7]
[344303479,1733333445371,-500.0,0.00025205,7]
[344303481,1733333445380,-1116.42,0.00025205,7]
[344303483,1733333445390,-500.0,0.00025205,7]
[344303485,1733333445400,-500.0,0.00025205,7]
[344303486,1733333445409,-500.0,0.00025205,7]
[344303488,1733333445419,-500.0,0.00025205,7]
[344303490,1733333445429,-563.92,0.00025205,7]
[344303492,1733333445438,-522.96,0.00025205,7]
[344303494,1733333445448,-500.0,0.00025205,7]
[344303496,1733333445458,-500.0,0.00025205,7]
[344303498,1733333445468,-515.01,0.00025205,7]
[344303500,1733333445477,-500.0,0.00025205,7]
[344303502,1733333445491,-504.71,0.00025205,7]
[344303504,1733333445502,-500.0,0.00025205,7]
[344303506,1733333445511,-7087.95,0.00025205,7]
[344303508,1733333445520,-500.0,0.00025205,7]
[344303510,1733333445529,-500.0,0.00025205,7]
[344303512,1733333445538,-500.0,0.00025205,7]
[344303514,1733333445548,-2035.02,0.00025205,7]
[344303516,1733333445557,-3116.65,0.00025205,7]
[344303517,1733333445567,-500.0,0.00025205,7]
[344303519,1733333445575,-500.0,0.00025205,7]
[344303521,1733333445585,-526.70814094,0.00025205,7]
[344303523,1733333445596,-500.0,0.00025205,7]
[344303525,1733333445606,-500.0,0.00025205,7]
[344303527,1733333445615,-564.96,0.00025205,7]
[344303529,1733333445625,-500.0,0.00025205,7]
[344303531,1733333445634,-500.0,0.00025205,7]
[344303533,1733333445643,-500.0,0.00025205,7]
[344303535,1733333445652,-1293.31,0.00025205,7]
[344303537,1733333445662,-500.0,0.00025205,7]
[344303539,1733333445673,-424.33985205,0.00025205,7]
[344303541,1733333445682,-500.0,0.00025205,7]
[344303543,1733333445691,-1459.39,0.00025205,7]
[344303545,1733333445700,-657.86,0.00025205,7]
[344303546,1733333445710,-633.52337674,0.00025205,7]
[344303548,1733333445719,-599.05,0.00025205,7]
[344303550,1733333445729,-500.0,0.00025205,7]
[344303552,1733333445745,-689.6,0.00025205,7]
[344303554,1733333445755,-903.51,0.00025205,7]
[344303556,1733333445764,-500.0,0.00025205,7]
[344303558,1733333445774,-500.0,0.00025205,7]
[344303560,1733333445784,-1056.39,0.00025205,7]
[344303562,1733333445794,-557.51,0.00025205,7]
[344303564,1733333445803,-500.0,0.00025205,7]
[344303566,1733333445814,-500.0,0.00025205,7]
[344303568,1733333445823,-2094.84,0.00025205,7]
[344303570,1733333445833,-679.03,0.00025205,7]
[344303572,1733333445842,-500.0,0.00025205,7]
[344303574,1733333445852,-500.0,0.00025205,7]
[344303576,1733333445861,-500.0,0.00025205,7]
[344303578,1733333445871,-1824.02,0.00025205,7]
[344303580,1733333445880,-655.64,0.00025205,7]
[344303582,1733333445890,-500.0,0.00025205,7]
[344303584,1733333445900,-500.0,0.00025205,7]
[344303586,1733333445909,-606.39,0.00025205,7]
[344303588,1733333445918,-500.0,0.00025205,7]
[344303590,1733333445928,-535.37,0.00025205,7]
[344303591,1733333445938,-500.0,0.00025205,7]
[344303593,1733333445948,-703.44,0.00025205,7]
[344303595,1733333445957,-500.0,0.00025205,7]
[344303596,1733333445966,-571.15,0.00025205,7]
[344303598,1733333445975,-770.81,0.00025205,7]
[344303600,1733333445987,-771.52,0.00025205,7]
[344303602,1733333445997,-500.0,0.00025205,7]
[344303604,1733333446006,-500.0,0.00025205,7]
[344303606,1733333446016,-500.0,0.00025205,7]
[344303608,1733333446026,-500.0,0.00025205,7]
[344303610,1733333446035,-500.0,0.00025205,7]
[344303612,1733333446045,-500.0,0.00025205,7]
[344303614,1733333446056,-500.0,0.00025205,7]
[344303616,1733333446066,-500.0,0.00025205,7]
[344303618,1733333446076,-729.72,0.00025205,7]
[344303620,1733333446085,-500.0,0.00025205,7]
[344303622,1733333446094,-526.89,0.00025205,7]
[344303623,1733333446103,-7776.5,0.00025205,7]
[344303625,1733333446113,-900.0,0.00025469,3]
[344303627,1733333446122,-1474.41491793,0.00025475,2]
[344303629,1733333446132,-500.0,0.00025479,7]
[344303631,1733333446141,-500.0,0.00025479,7]
[344303633,1733333446151,-500.0,0.00025479,7]
[344303635,1733333446160,-500.0,0.00025479,7]
[344303637,1733333446171,-500.0,0.00025479,7]
[344303639,1733333446180,-721.83,0.00025479,7]
[344303641,1733333446189,-573.45,0.00025479,7]
[344303643,1733333446199,-522.96,0.00025479,7]
[344303645,1733333446209,-500.0,0.00025479,7]
[344303647,1733333446218,-500.0,0.00025479,7]
[344303649,1733333446228,-500.0,0.00025479,7]
[344303652,1733333446241,-500.0,0.00025479,7]
[344303654,1733333446250,-500.0,0.00025479,7]
[344303656,1733333446260,-500.0,0.00025479,7]
[344303658,1733333446269,-500.0,0.00025479,7]
[344303660,1733333446279,-500.0,0.00025479,7]
[344303661,1733333446288,-500.0,0.00025479,7]
[344303663,1733333446298,-500.0,0.00025479,7]
[344303665,1733333446307,-709.08,0.00025479,7]
[344303667,1733333446317,-926.59,0.00025479,7]
[344303669,1733333446326,-500.0,0.00025479,7]
[344303671,1733333446336,-500.0,0.00025479,7]
[344303673,1733333446346,-500.0,0.00025479,7]
[344303675,1733333446355,-504.13,0.00025479,7]
[344303677,1733333446365,-500.0,0.00025479,7]
[344303679,1733333446375,-723.18,0.00025479,7]
[344303681,1733333446384,-500.0,0.00025479,7]
[344303683,1733333446394,-500.0,0.00025479,7]
[344303684,1733333446403,-500.0,0.00025479,7]
[344303686,1733333446412,-500.0,0.00025479,7]
[344303688,1733333446422,-500.0,0.00025479,7]
[344303690,1733333446431,-500.0,0.00025479,7]
[344303692,1733333446441,-500.0,0.00025479,7]
[344303694,1733333446451,-626.31,0.00025479,7]
[344303696,1733333446461,-500.0,0.00025479,7]
[344303697,1733333446470,-1467.58,0.00025479,7]
[344303699,1733333446479,-662.89,0.00025479,7]
[344303701,1733333446491,-500.0,0.00025479,7]
[344303703,1733333446500,-500.0,0.00025479,7]
[344303705,1733333446510,-500.0,0.00025479,7]
[344303707,1733333446520,-500.0,0.00025479,7]
[344303709,1733333446530,-500.0,0.00025479,7]
[344303711,1733333446539,-500.0,0.00025479,7]
[344303713,1733333446549,-677.12,0.00025479,7]
[344303715,1733333446558,-524.85,0.00025479,7]
[344303717,1733333446568,-500.0,0.00025479,7]
[344303719,1733333446577,-500.0,0.00025479,7]
[344303721,1733333446586,-500.0,0.00025479,7]
[344303723,1733333446597,-500.0,0.00025479,7]
[344303724,1733333446607,-500.0,0.00025479,7]
[344303726,1733333446616,-629.48,0.00025479,7]
[344303728,1733333446625,-500.0,0.00025479,7]
[344303730,1733333446635,-500.0,0.00025479,7]
[344303732,1733333446644,-500.0,0.00025479,7]
[344303734,1733333446654,-500.0,0.00025479,7]
[344303736,1733333446664,-500.0,0.00025479,7]
[344303738,1733333446676,-1116.42,0.00025479,7]
[344303740,1733333446685,-500.0,0.00025479,7]
[344303742,1733333446694,-208.70050483,0.00025479,7]
[344303744,1733333446703,-500.0,0.00025479,7]
[344303746,1733333446713,-563.92,0.00025479,7]
[344303748,1733333446722,-522.96,0.00025479,7]
[344303750,1733333446732,-500.0,0.00025479,7]
[344303751,1733333446743,-500.0,0.00025479,7]
[344303753,1733333446753,-515.01,0.00025479,7]
[344303755,1733333446762,-500.0,0.00025479,7]
[344303757,1733333446772,-504.71,0.00025479,7]
[344303760,1733333446782,-7087.95,0.00025479,7]
[344303763,1733333446792,-500.0,0.00025479,7]
[344303766,1733333446803,-410.80906185,0.00025479,7]
[344303768,1733333446812,-500.0,0.00025479,7]
[344303770,1733333446822,-2035.02,0.00025479,7]
[344303772,1733333446831,-3116.65,0.00025479,7]
[344303774,1733333446840,-500.0,0.00025479,7]
[344303776,1733333446849,-569.43357761,0.00025479,7]
[344303777,1733333446858,-564.96,0.00025479,7]
[344303779,1733333446868,-500.0,0.00025479,7]
[344303781,1733333446877,-500.0,0.00025479,7]
[344303783,1733333446886,-500.0,0.00025479,7]
[344303785,1733333446896,-1293.31,0.00025479,7]
[344303787,1733333446906,-500.0,0.00025479,7]
[344303789,1733333446915,-500.0,0.00025479,7]
[344303791,1733333446924,-1459.39,0.00025479,7]
[344303793,1733333446934,-657.86,0.00025479,7]
[344303795,1733333446943,-599.05,0.00025479,7]
[344303797,1733333446953,-500.0,0.00025479,7]
[344303799,1733333446962,-689.6,0.00025479,7]
[344303800,1733333446971,-903.51,0.00025479,7]
[344303802,1733333446981,-500.0,0.00025479,7]
[344303804,1733333446993,-500.0,0.00025479,7]
[344303806,1733333447003,-1056.39,0.00025479,7]
[344303808,1733333447012,-557.51,0.00025479,7]
[344303810,1733333447021,-500.0,0.00025479,7]
[344303812,1733333447031,-2094.84,0.00025479,7]
[344303814,1733333447040,-679.03,0.00025479,7]
[344303816,1733333447049,-500.0,0.00025479,7]
[344303818,1733333447058,-500.0,0.00025479,7]
[344303820,1733333447068,-353.44981407,0.00025479,7]
[344303822,1733333447078,-1824.02,0.00025479,7]
[344303824,1733333447087,-655.64,0.00025479,7]
[344303826,1733333447096,-500.0,0.00025479,7]
[344303827,1733333447105,-500.0,0.00025479,7]
[344303829,1733333447115,-606.39,0.00025479,7]
[344303831,1733333447124,-500.0,0.00025479,7]
[344303833,1733333447133,-535.37,0.00025479,7]
[344303835,1733333447143,-500.0,0.00025479,7]
[344303837,1733333447152,-703.44,0.00025479,7]
[344303839,1733333447161,-500.0,0.00025479,7]
[344303841,1733333447170,-571.15,0.00025479,7]
[344303843,1733333447179,-770.81,0.00025479,7]
[344303845,1733333447189,-771.52,0.00025479,7]
[344303847,1733333447198,-500.0,0.00025479,7]
[344303849,1733333447207,-500.0,0.00025479,7]
[344303851,1733333447216,-500.0,0.00025479,7]
[344303853,1733333447225,-500.0,0.00025479,7]
[344303855,1733333447237,-500.0,0.00025479,7]
[344303857,1733333447246,-500.0,0.00025479,7]
[344303858,1733333447256,-500.0,0.00025479,7]
[344303860,1733333447266,-340.88288072,0.00025479,7]
[344303862,1733333447275,-729.72,0.00025479,7]
[344303864,1733333447284,-500.0,0.00025479,7]
[344303866,1733333447293,-7776.5,0.00025479,7]
[344303868,1733333447303,-1000.0,0.00025521,2]
[344303870,1733333447312,-1125.19435932,0.00025521,2]
[344303872,1733333447321,-176.315,0.00025524,10]
[344303874,1733333447331,-1727.23159869,0.00025653,2]
[344303876,1733333447341,-500.0,0.00025753,7]
[344303877,1733333447351,-500.0,0.00025753,7]
[344303879,1733333447360,-500.0,0.00025753,7]
[344303881,1733333447370,-500.0,0.00025753,7]
[344303883,1733333447379,-500.0,0.00025753,7]
[344303885,1733333447388,-721.83,0.00025753,7]
[344303887,1733333447397,-573.45,0.00025753,7]
[344303889,1733333447407,-522.96,0.00025753,7]
[344303890,1733333447416,-500.0,0.00025753,7]
[344303891,1733333447425,-500.0,0.00025753,7]
[344303892,1733333447435,-500.0,0.00025753,7]
[344303893,1733333447444,-500.0,0.00025753,7]
[344303894,1733333447454,-500.0,0.00025753,7]
[344303895,1733333447463,-500.0,0.00025753,7]
[344303896,1733333447473,-500.0,0.00025753,7]
[344303897,1733333447482,-500.0,0.00025753,7]
[344303898,1733333447494,-500.0,0.00025753,7]
[344303899,1733333447503,-709.08,0.00025753,7]
[344303900,1733333447513,-926.59,0.00025753,7]
[344303901,1733333447523,-500.0,0.00025753,7]
[344303902,1733333447531,-500.0,0.00025753,7]
[344303903,1733333447541,-500.0,0.00025753,7]
[344303904,1733333447551,-504.13,0.00025753,7]
[344303905,1733333447560,-500.0,0.00025753,7]
[344303906,1733333447570,-723.18,0.00025753,7]
[344303907,1733333447580,-500.0,0.00025753,7]
[344303908,1733333447590,-500.0,0.00025753,7]
[344303909,1733333447603,-500.0,0.00025753,7]
[344303910,1733333447614,-500.0,0.00025753,7]
[344303911,1733333447624,-500.0,0.00025753,7]
[344303912,1733333447634,-500.0,0.00025753,7]
[344303913,1733333447645,-626.31,0.00025753,7]
[344303914,1733333447655,-500.0,0.00025753,7]
[344303915,1733333447664,-1467.58,0.00025753,7]
[344303916,1733333447675,-662.89,0.00025753,7]
[344303917,1733333447684,-500.0,0.00025753,7]
[344303918,1733333447694,-500.0,0.00025753,7]
[344303919,1733333447703,-500.0,0.00025753,7]
[344303920,1733333447712,-500.0,0.00025753,7]
[344303921,1733333447722,-500.0,0.00025753,7]
[344303922,1733333447732,-500.0,0.00025753,7]
[344303923,1733333447743,-677.12,0.00025753,7]
[344303925,1733333447752,-524.85,0.00025753,7]
[344303926,1733333447761,-550.7889525,0.00025753,7]
[344303928,1733333447770,-500.0,0.00025753,7]
[344303930,1733333447780,-501.8,0.00025753,7]
[344303932,1733333447790,-629.48,0.00025753,7]
[344303934,1733333447799,-500.0,0.00025753,7]
[344303936,1733333447809,-500.0,0.00025753,7]
[344303938,1733333447818,-500.0,0.00025753,7]
[344303940,1733333447827,-500.0,0.00025753,7]
[344303942,1733333447837,-1116.42,0.00025753,7]
[344303944,1733333447846,-500.0,0.00025753,7]
[344303946,1733333447855,-500.0,0.00025753,7]
[344303948,1733333447864,-563.92,0.00025753,7]
[344303950,1733333447874,-522.96,0.00025753,7]
[344303952,1733333447884,-500.0,0.00025753,7]
[344303954,1733333447894,-515.01,0.00025753,7]
[344303956,1733333447903,-500.0,0.00025753,7]
[344303958,1733333447912,-504.71,0.00025753,7]
[344303960,1733333447921,-7087.95,0.00025753,7]
[344303962,1733333447931,-500.0,0.00025753,7]
[344303964,1733333447940,-2035.02,0.00025753,7]
[344303966,1733333447949,-3116.65,0.00025753,7]
[344303968,1733333447958,-500.0,0.00025753,7]
[344303970,1733333447967,-564.96,0.00025753,7]
[344303972,1733333447977,-500.0,0.00025753,7]
[344303974,1733333447988,-500.0,0.00025753,7]
[344303976,1733333447998,-500.0,0.00025753,7]
[344303978,1733333448007,-1293.31,0.00025753,7]
[344303980,1733333448016,-500.0,0.00025753,7]
[344303982,1733333448026,-500.0,0.00025753,7]
[344303984,1733333448035,-1459.39,0.00025753,7]
[344303986,1733333448044,-657.86,0.00025753,7]
[344303988,1733333448053,-599.05,0.00025753,7]
[344303990,1733333448062,-500.0,0.00025753,7]
[344303992,1733333448071,-689.6,0.00025753,7]
[344303994,1733333448081,-903.51,0.00025753,7]
[344303996,1733333448091,-504.42874505,0.00025753,7]
[344303998,1733333448101,-500.0,0.00025753,7]
[344304000,1733333448111,-1056.39,0.00025753,7]
[344304002,1733333448120,-557.51,0.00025753,7]
[344304004,1733333448130,-500.0,0.00025753,7]
[344304005,1733333448139,-2094.84,0.00025753,7]
[344304007,1733333448148,-679.03,0.00025753,7]
[344304009,1733333448158,-500.0,0.00025753,7]
[344304011,1733333448167,-500.0,0.00025753,7]
[344304012,1733333448178,-1824.02,0.00025753,7]
[344304027,1733333448326,-655.64,0.00025753,7]
[344304029,1733333448338,-500.0,0.00025753,7]
[344304031,1733333448348,-500.0,0.00025753,7]
[344304033,1733333448358,-606.39,0.00025753,7]
[344304035,1733333448368,-500.0,0.00025753,7]
[344304037,1733333448379,-535.37,0.00025753,7]
[344304039,1733333448389,-500.0,0.00025753,7]
[344304041,1733333448399,-703.44,0.00025753,7]
[344304043,1733333448409,-500.0,0.00025753,7]
[344304045,1733333448419,-571.15,0.00025753,7]
[344304047,1733333448431,-770.81,0.00025753,7]
[344304049,1733333448441,-771.52,0.00025753,7]
[344304051,1733333448451,-500.0,0.00025753,7]
[344304052,1733333448461,-500.0,0.00025753,7]
[344304054,1733333448471,-500.0,0.00025753,7]
[344304056,1733333448482,-500.0,0.00025753,7]
[344304058,1733333448496,-377.26509342,0.00025753,7]
[344304060,1733333448507,-500.0,0.00025753,7]
[344304062,1733333448517,-500.0,0.00025753,7]
[344304064,1733333448526,-729.72,0.00025753,7]
[344304066,1733333448536,-500.0,0.00025753,7]
[344304068,1733333448546,-7776.5,0.00025753,7]
[344304070,1733333448556,-617.0,0.00025775,2]
[344304072,1733333448565,-420.0,0.0002581,2]
[344304074,1733333448576,-1049.6,0.00026014,3]
[344304076,1733333448586,-524.8,0.00026014,3]
[344304078,1733333448599,-500.0,0.00026027,7]
[344304079,1733333448609,-500.0,0.00026027,7]
[344304081,1733333448619,-500.0,0.00026027,7]
[344304083,1733333448629,-500.0,0.00026027,7]